bitfinex/quotes_BTCUSD_20250602
["timestamp","ask_amount","ask_price","bid_price","bid_amount"]
[1748843352638,1.001,104760.0,104750.0,1.87460354]
[1748843352852,1.001,104760.0,104750.0,1.85672588]
[1748843353478,1.001,104760.0,104750.0,1.87460308]
[1748843353621,1.001,104760.0,104750.0,1.87460305]
[1748843353824,1.001,104760.0,104750.0,1.85672588]
[1748843354032,1.001,104760.0,104750.0,1.85672591]
[1748843355860,1.001,104760.0,104750.0,1.87460319]
[1748843356076,1.001,104760.0,104750.0,1.85672591]
[1748843357502,1.001,104760.0,104750.0,1.87460319]
[1748843357751,1.001,104760.0,104750.0,1.87460279]
[1748843358080,1.001,104760.0,104750.0,1.82807591]
[1748843358191,1.001,104760.0,104750.0,1.84595261]
[1748843358394,1.001,104760.0,104750.0,1.82807588]
[1748843358593,1.001,104760.0,104750.0,1.84594962]
[1748843358800,1.001,104760.0,104750.0,1.82807588]
[1748843359217,1.001,104760.0,104750.0,1.84594813]
[1748843359417,1.001,104760.0,104750.0,1.82807588]
[1748843359619,1.001,104760.0,104750.0,1.18705114]
[1748843359825,1.001,104760.0,104750.0,1.82807588]
[1748843360186,1.001,104760.0,104750.0,1.84594762]
[1748843360383,1.001,104760.0,104750.0,1.82807588]
[1748843360731,1.001,104760.0,104750.0,1.84594702]
[1748843360931,1.001,104760.0,104750.0,1.82807588]
[1748843362629,1.001,104760.0,104750.0,1.84594683]
[1748843362988,1.001,104760.0,104750.0,1.82807588]
[1748843363788,1.001,104760.0,104750.0,1.84594723]
[1748843364017,1.001,104760.0,104750.0,1.82807588]
[1748843365028,1.001,104760.0,104750.0,1.84594715]
[1748843365943,1.001,104760.0,104750.0,1.84594721]
[1748843366903,1.001,104760.0,104750.0,1.84594709]
[1748843367306,1.001,104760.0,104750.0,1.84594707]
[1748843367508,1.001,104760.0,104750.0,1.84594612]
[1748843367728,1.001,104760.0,104750.0,1.82807586]
[1748843367928,1.001,104760.0,104750.0,1.84594671]
[1748843369089,1.001,104760.0,104750.0,1.84594553]
[1748843369258,1.001,104760.0,104750.0,1.84594554]
[1748843369463,1.001,104760.0,104750.0,1.84594424]
[1748843369676,1.001,104760.0,104750.0,1.18705112]
[1748843369882,1.001,104760.0,104750.0,1.82807586]
[1748843370080,1.001,104760.0,104750.0,0.9111997]
[1748843370431,1.001,104760.0,104750.0,1.84586445]
[1748843370781,1.001,104760.0,104750.0,1.84586456]
[1748843371331,1.001,104760.0,104750.0,1.8458636]
[1748843371539,1.001,104760.0,104750.0,1.82926329]
[1748843371766,1.001,104760.0,104750.0,1.81346196]
[1748843371963,1.001,104760.0,104750.0,1.81346199]
[1748843372122,1.001,104760.0,104750.0,1.81346215]
[1748843372662,1.001,104760.0,104750.0,1.79559583]
[1748843372980,1.001,104760.0,104750.0,1.81346226]
[1748843373299,1.001,104760.0,104750.0,1.81346239]
[1748843373507,1.001,104760.0,104750.0,1.79559583]
[1748843373915,1.001,104760.0,104750.0,1.19931405]
[1748843374118,1.0167,104760.0,104750.0,1.49295405]
[1748843374333,1.001,104760.0,104750.0,0.37322083]
[1748843374525,1.001,104760.0,104750.0,1.0777732]
[1748843374526,1.0328,104760.0,104750.0,1.0777732]
[1748843374785,1.0328,104760.0,104750.0,1.07777935]
[1748843375004,1.0328,104760.0,104750.0,1.06799876]
[1748843375322,1.0328,104760.0,104750.0,1.06799852]
[1748843375548,1.0328,104760.0,104750.0,1.0679985]
[1748843375684,1.0328,104760.0,104750.0,1.05012185]
[1748843376069,1.0328,104760.0,104750.0,1.05012198]
[1748843376550,1.0328,104760.0,104750.0,1.06799775]
[1748843376833,1.0328,104760.0,104750.0,1.45012198]
[1748843377208,1.0328,104760.0,104750.0,1.06608198]
[1748843377380,1.0328,104760.0,104750.0,1.45004198]
[1748843378201,1.0328,104760.0,104750.0,1.4679178]
[1748843378396,1.0328,104760.0,104750.0,1.46791789]
[1748843378600,1.0328,104760.0,104750.0,1.45004198]
[1748843378839,1.0328,104760.0,104750.0,1.46791789]
[1748843379044,1.0328,104760.0,104750.0,1.45004198]
[1748843379431,1.0328,104760.0,104750.0,1.46791808]
[1748843379643,1.0328,104760.0,104750.0,1.45004198]
[1748843380614,1.0328,104760.0,104750.0,1.45004199]
[1748843380817,1.001,104760.0,104750.0,1.78509521]
[1748843381031,1.001,104760.0,104750.0,2.18305079]
[1748843381231,1.001,104760.0,104750.0,2.21260634]
[1748843381535,1.001,104760.0,104750.0,2.18305079]
[1748843381692,1.001,104760.0,104750.0,2.18304814]
[1748843381885,1.0,104760.0,104750.0,2.17504778]
[1748843382090,1.0,104760.0,104750.0,2.15717597]
[1748843382305,1.002,104760.0,104750.0,2.16817597]
[1748843382494,1.002,104760.0,104750.0,2.18604718]
[1748843382670,1.002,104760.0,104750.0,2.16817565]
[1748843384333,1.002,104760.0,104750.0,2.18604634]
[1748843384529,1.002,104760.0,104750.0,1.8376216]
[1748843384732,1.002,104760.0,104750.0,2.47559315]
[1748843384907,1.002,104760.0,104750.0,2.46077563]
[1748843385104,1.002,104760.0,104750.0,2.47863587]
[1748843386363,1.002,104760.0,104750.0,2.47863285]
[1748843386936,1.002,104760.0,104750.0,2.47863284]
[1748843387112,1.002,104760.0,104750.0,2.46077563]
[1748843388588,1.002,104760.0,104750.0,2.47863808]
[1748843388738,1.002,104760.0,104750.0,2.46077563]
[1748843389123,1.002,104760.0,104750.0,2.47864092]
[1748843389330,1.002,104760.0,104750.0,2.46077563]
[1748843390122,1.002,104760.0,104750.0,2.47864121]
[1748843390433,1.002,104760.0,104750.0,2.841288]
[1748843390655,1.002,104760.0,104750.0,2.91719016]
[1748843390863,1.002,104760.0,104750.0,2.93505054]
[1748843391100,1.002,104760.0,104750.0,2.88763461]
[1748843391258,1.002,104760.0,104750.0,2.87238328]
[1748843391443,1.002,104760.0,104750.0,2.89024342]
[1748843391643,1.002,104760.0,104750.0,2.87238328]
[1748843393635,1.002,104760.0,104750.0,2.87238302]
[1748843394248,1.002,104760.0,104750.0,2.87801244]
[1748843394453,1.002,104760.0,104750.0,2.86015298]
[1748843395068,1.002,104760.0,104750.0,2.97879298]
[1748843395272,1.002,104760.0,104750.0,3.27187298]
[1748843395881,1.002,104760.0,104750.0,2.95136061]
[1748843396444,1.002,104760.0,104750.0,2.96921946]
[1748843396657,1.002,104760.0,104750.0,1.86685587]
[1748843396832,1.002,104760.0,104750.0,2.95914089]
[1748843397189,1.002,104760.0,104750.0,2.95105525]
[1748843397536,1.002,104760.0,104750.0,2.95101525]
[1748843397750,1.002,104760.0,104750.0,2.95101544]
[1748843397970,1.002,104760.0,104750.0,2.96887698]
[1748843398173,1.002,104760.0,104750.0,2.96887693]
[1748843398374,1.002,104760.0,104750.0,2.95101544]
[1748843398570,1.002,104760.0,104750.0,2.90101544]
[1748843398799,1.002,104760.0,104750.0,2.95101544]
[1748843399203,1.002,104760.0,104750.0,2.63050112]
[1748843399401,1.002,104760.0,104750.0,2.64836269]
[1748843399616,1.002,104760.0,104750.0,2.64836294]
[1748843399819,1.002,104760.0,104750.0,2.63050112]
[1748843399959,1.002,104760.0,104750.0,2.64836514]
[1748843400162,1.002,104760.0,104750.0,2.63050112]
[1748843400860,1.002,104760.0,104750.0,2.64836468]
[1748843401221,1.002,104760.0,104750.0,2.63050113]
[1748843401766,1.002,104760.0,104750.0,2.6483631]
[1748843401991,1.002,104760.0,104750.0,2.63050113]
[1748843402191,1.002,104760.0,104750.0,2.5983631]
[1748843402422,1.002,104760.0,104750.0,2.2361631]
[1748843403028,1.002,104760.0,104750.0,2.23616317]
[1748843403807,1.002,104760.0,104750.0,2.23616343]
[1748843404632,1.002,104760.0,104750.0,2.21830113]
[1748843404818,1.002,104760.0,104750.0,2.23616142]
[1748843405228,1.002,104760.0,104750.0,2.23616568]
[1748843406539,1.002,104760.0,104750.0,2.21830113]
[1748843406761,1.002,104760.0,104750.0,2.23616924]
[1748843408029,1.002,104760.0,104750.0,2.23617022]
[1748843408644,1.002,104760.0,104750.0,2.23617125]
[1748843408861,1.002,104760.0,104750.0,2.20587125]
[1748843409772,1.002,104760.0,104750.0,2.22087125]
[1748843410149,1.002,104760.0,104750.0,2.21940113]
[1748843410359,1.002,104760.0,104750.0,2.23727125]
[1748843410750,1.002,104760.0,104750.0,2.18727125]
[1748843410939,1.002,104760.0,104750.0,2.23727215]
[1748843411498,1.002,104760.0,104750.0,1.91676173]
[1748843411663,1.002,104760.0,104750.0,2.23728154]
[1748843412023,1.002,104760.0,104750.0,2.21940113]
[1748843412231,1.002,104760.0,104750.0,2.2275069]
[1748843412531,1.002,104760.0,104750.0,2.20962649]
[1748843412968,1.002,104760.0,104750.0,2.22750735]
[1748843413621,1.002,104760.0,104750.0,2.22750736]
[1748843414532,1.002,104760.0,104750.0,2.20962649]
[1748843414953,1.002,104760.0,104750.0,2.227509]
[1748843415842,1.002,104760.0,104750.0,2.22750941]
[1748843416336,1.002,104760.0,104750.0,2.22751509]
[1748843416768,1.002,104760.0,104750.0,2.2275151]
[1748843417222,1.002,104760.0,104750.0,2.22751486]
[1748843417621,1.002,104760.0,104750.0,2.20962649]
[1748843417797,1.002,104760.0,104750.0,2.22751483]
[1748843418448,1.002,104760.0,104750.0,2.20962649]
[1748843418602,1.002,104760.0,104750.0,2.22751483]
[1748843419011,1.002,104760.0,104750.0,2.54802525]
[1748843419209,1.002,104760.0,104750.0,2.54794459]
[1748843419569,1.002,104760.0,104750.0,1.90700441]
[1748843419779,1.002,104760.0,104750.0,2.54794459]
[1748843420181,1.002,104760.0,104750.0,2.53005625]
[1748843420384,1.002,104760.0,104750.0,2.54794372]
[1748843420610,1.002,104760.0,104750.0,2.23697625]
[1748843420899,1.002,104760.0,104750.0,2.52973625]
[1748843421555,1.002,104760.0,104750.0,2.54762378]
[1748843422811,1.002,104760.0,104750.0,2.54762373]
[1748843423160,1.002,104760.0,104750.0,2.56551113]
[1748843423570,1.002,104760.0,104750.0,2.56551052]
[1748843423766,1.002,104760.0,104750.0,2.54762373]
[1748843424685,1.002,104760.0,104750.0,2.56551052]
[1748843425116,1.002,104760.0,104750.0,2.54762373]
[1748843426329,1.002,104760.0,104750.0,2.56551053]
[1748843426539,1.002,104760.0,104750.0,2.54762373]
[1748843427124,1.002,104760.0,104750.0,2.55985377]
[1748843427325,1.002,104760.0,104750.0,2.57774057]
[1748843427757,1.002,104760.0,104750.0,2.55985377]
[1748843428911,1.002,104760.0,104750.0,2.57774046]
[1748843429058,1.002,104760.0,104750.0,2.55985377]
[1748843430666,1.002,104760.0,104750.0,2.57774044]
[1748843431081,1.002,104760.0,104750.0,2.55985377]
[1748843431677,1.002,104760.0,104750.0,2.57774044]
[1748843432291,1.002,104760.0,104750.0,2.55985377]
[1748843432496,1.002,104760.0,104750.0,2.57774044]
[1748843432689,1.002,104760.0,104750.0,2.55985377]
[1748843433141,1.002,104760.0,104750.0,2.91987941]
[1748843433380,1.002,104760.0,104750.0,2.89032386]
[1748843433554,1.002,104760.0,104750.0,2.93423785]
[1748843433761,1.002,104760.0,104750.0,2.9521237]
[1748843433936,1.002,104760.0,104750.0,2.93423785]
[1748843434136,1.002,104760.0,104750.0,2.64163785]
[1748843434338,0.63997642,104760.0,104750.0,2.64273271]
[1748843434544,0.63997642,104760.0,104750.0,2.58549382]
[1748843435509,0.63997642,104760.0,104750.0,2.58244076]
[1748843435713,0.63897642,104760.0,104750.0,2.5973771]
[1748843435908,0.63897642,104760.0,104750.0,2.57949334]
[1748843436111,0.63897642,104760.0,104750.0,2.58249334]
[1748843436365,0.63897642,104760.0,104750.0,2.59228183]
[1748843436569,0.63797642,104760.0,104750.0,2.57749334]
[1748843436944,0.63797642,104760.0,104750.0,2.58149334]
[1748843437151,0.59303642,104760.0,104750.0,2.58149334]
[1748843437348,0.54534328,104760.0,104750.0,2.58149334]
[1748843437549,0.54534328,104760.0,104750.0,2.59128165]
[1748843437976,0.54534328,104760.0,104750.0,2.60916473]
[1748843438293,0.54534328,104760.0,104750.0,2.58822907]
[1748843438508,0.54534328,104760.0,104750.0,2.87104076]
[1748843438509,0.1833197,104760.0,104750.0,2.87104076]
[1748843438921,0.13562656,104760.0,104750.0,2.87104076]
[1748843439046,0.08793342,104760.0,104750.0,2.88892362]
[1748843439249,0.08793342,104760.0,104750.0,2.87104076]
[1748843439462,0.04024028,104760.0,104750.0,2.87104076]
[1748843439885,0.04024028,104760.0,104750.0,2.87409327]
[1748843440088,0.04024028,104760.0,104750.0,2.90364878]
[1748843440494,0.04024028,104760.0,104750.0,2.92153066]
[1748843440866,0.04024028,104760.0,104750.0,2.92924116]
[1748843441066,0.0162,104790.0,104780.0,0.23404728]
[1748843441267,0.0162,104790.0,104780.0,1.37938006]
[1748843441839,0.0312,104790.0,104780.0,1.77938006]
[1748843442442,0.0322,104790.0,104780.0,1.77938006]
[1748843442726,0.0322,104790.0,104780.0,1.7793416]
[1748843442932,0.0322,104790.0,104780.0,1.7793308]
[1748843443136,0.0332,104790.0,104780.0,1.77933087]
[1748843443350,0.0332,104790.0,104780.0,1.76150093]
[1748843443522,0.0332,104790.0,104780.0,1.45886072]
[1748843443722,0.0312,104790.0,104780.0,1.45886072]
[1748843443924,0.0308,104800.0,104790.0,0.22446778]
[1748843444131,0.0308,104800.0,104790.0,0.63754569]
[1748843444510,0.0308,104800.0,104790.0,1.03754539]
[1748843444800,0.0308,104800.0,104790.0,0.61971788]
[1748843444998,0.0308,104800.0,104790.0,0.63754539]
[1748843445207,0.0308,104800.0,104790.0,1.01971788]
[1748843445697,0.0318,104800.0,104790.0,1.03754593]
[1748843445898,0.0318,104800.0,104790.0,1.04695403]
[1748843446030,0.0328,104800.0,104790.0,1.04695575]
[1748843446685,0.0328,104800.0,104790.0,1.04695971]
[1748843447082,0.0328,104800.0,104790.0,1.02912598]
[1748843448011,0.0328,104800.0,104790.0,1.04695971]
[1748843448219,0.0328,104800.0,104790.0,1.02912598]
[1748843448424,0.0328,104800.0,104790.0,1.04695971]
[1748843448662,0.0328,104800.0,104790.0,1.02912598]
[1748843448863,0.0328,104800.0,104790.0,1.06601685]
[1748843449013,0.0328,104800.0,104790.0,1.0481831]
[1748843449821,0.0328,104800.0,104790.0,1.06602714]
[1748843450019,0.0328,104800.0,104790.0,1.06603017]
[1748843450475,0.0328,104800.0,104790.0,1.0481831]
[1748843450622,0.0328,104800.0,104790.0,1.06603017]
[1748843451236,0.0328,104800.0,104790.0,0.76394207]
[1748843451435,0.0328,104800.0,104790.0,1.038775]
[1748843451659,0.0328,104800.0,104790.0,1.05662587]
[1748843451877,0.0328,104800.0,104790.0,1.05662591]
[1748843452188,0.0328,104800.0,104790.0,1.05662601]
[1748843453202,0.0328,104800.0,104790.0,1.05662602]
[1748843453398,0.0328,104800.0,104790.0,1.03877501]
[1748843453608,0.0328,104800.0,104790.0,1.05665796]
[1748843453809,0.0328,104800.0,104790.0,1.06601258]
[1748843454189,0.0328,104800.0,104790.0,1.04812959]
[1748843454564,0.0328,104800.0,104790.0,1.06601251]
[1748843454991,0.0328,104800.0,104790.0,1.06601233]
[1748843455176,0.0328,104800.0,104790.0,1.04812959]
[1748843455347,0.0328,104800.0,104790.0,1.06601232]
[1748843455563,0.0328,104800.0,104790.0,1.06601233]
[1748843455955,0.0328,104800.0,104790.0,1.15597233]
[1748843457029,0.0328,104800.0,104790.0,1.15597235]
[1748843457234,0.0328,104800.0,104790.0,1.13808959]
[1748843457387,0.0328,104800.0,104790.0,1.15597236]
[1748843457601,0.0328,104800.0,104790.0,1.15108568]
[1748843458984,0.0328,104800.0,104790.0,1.13320287]
[1748843459179,0.0328,104800.0,104790.0,1.15108568]
[1748843459724,0.0328,104800.0,104790.0,1.13320287]
[1748843459905,0.0328,104800.0,104790.0,1.15108572]
[1748843460055,0.0328,104800.0,104790.0,1.15104572]
[1748843460469,0.0328,104800.0,104790.0,0.74455029]
[1748843460672,0.67353164,104800.0,104790.0,0.33155719]
[1748843460989,0.67353164,104800.0,104790.0,0.34944218]
[1748843461194,0.67353164,104800.0,104790.0,0.34110017]
[1748843461364,0.67353164,104800.0,104790.0,0.34476731]
[1748843461559,0.67353164,104800.0,104790.0,0.63740731]
[1748843461818,0.67353164,104800.0,104790.0,0.35776338]
[1748843462150,0.67353164,104800.0,104790.0,0.3756495]
[1748843462370,0.67353164,104800.0,104790.0,0.35776338]
[1748843463418,0.67353164,104800.0,104790.0,0.3756495]
[1748843463620,0.67353164,104800.0,104790.0,0.66828957]
[1748843464021,0.67353164,104800.0,104790.0,0.65040338]
[1748843464621,0.67353164,104800.0,104790.0,0.65040493]
[1748843465238,0.67353164,104800.0,104790.0,0.66829115]
[1748843465423,0.67353164,104800.0,104790.0,0.66829119]
[1748843465624,0.67353164,104800.0,104790.0,0.37565119]
[1748843465857,0.67353164,104800.0,104790.0,0.66829172]
[1748843466056,0.67353164,104800.0,104790.0,0.66829175]
[1748843466270,0.67353164,104800.0,104790.0,0.66829194]
[1748843466441,0.67353164,104800.0,104790.0,0.65040493]
[1748843467044,0.67353164,104800.0,104790.0,0.36730727]
[1748843467392,0.68311228,104800.0,104790.0,0.36730727]
[1748843468176,0.68311228,104800.0,104790.0,0.38519428]
[1748843468543,0.68311228,104800.0,104790.0,0.36730727]
[1748843468758,0.68311228,104800.0,104790.0,0.38152581]
[1748843468985,0.68311228,104800.0,104790.0,0.36363895]
[1748843469223,0.68311228,104800.0,104790.0,0.38152595]
[1748843469436,0.68311228,104800.0,104790.0,0.36244154]
[1748843469437,0.69265344,104800.0,104790.0,0.36244154]
[1748843469660,0.69265344,104800.0,104790.0,0.36241825]
[1748843470063,0.69265344,104800.0,104790.0,0.37196069]
[1748843470273,0.69265344,104800.0,104790.0,0.34455454]
[1748843470480,0.69265344,104800.0,104790.0,0.35409698]
[1748843470693,0.70219469,104800.0,104790.0,0.26656406]
[1748843470921,0.71173603,104800.0,104790.0,0.27610677]
[1748843471105,0.69265344,104800.0,104790.0,0.28563927]
[1748843471532,0.69265344,104800.0,104790.0,0.26778557]
[1748843471946,0.69265344,104800.0,104790.0,0.28563808]
[1748843472160,0.69265344,104800.0,104790.0,0.26778557]
[1748843472640,0.69265344,104800.0,104790.0,0.27732801]
[1748843473042,0.69265344,104800.0,104790.0,0.29517921]
[1748843473247,0.68311228,104800.0,104790.0,0.27732801]
[1748843473488,0.68311228,104800.0,104790.0,0.29517921]
[1748843473680,0.68311228,104800.0,104790.0,0.29517777]
[1748843473889,0.68311228,104800.0,104790.0,0.27732801]
[1748843474060,0.68311228,104800.0,104790.0,0.29517777]
[1748843474260,0.68311228,104800.0,104790.0,0.27732801]
[1748843474467,0.68311228,104800.0,104790.0,0.29517562]
[1748843474672,0.68311228,104800.0,104790.0,0.28563337]
[1748843474884,0.68311228,104800.0,104790.0,0.27732755]
[1748843475104,0.68311228,104800.0,104790.0,0.29517571]
[1748843475306,0.68311228,104800.0,104790.0,0.27732755]
[1748843475514,0.68311228,104800.0,104790.0,0.27732709]
[1748843475738,0.68311228,104800.0,104790.0,0.285633]
[1748843475973,0.68311228,104800.0,104790.0,0.26778484]
[1748843476528,0.68311228,104800.0,104790.0,0.2856312]
[1748843476743,0.68311228,104800.0,104790.0,0.29517345]
[1748843476954,0.68311228,104800.0,104790.0,0.27732709]
[1748843477376,0.68311228,104800.0,104790.0,0.29517345]
[1748843477596,0.68311228,104800.0,104790.0,0.27732714]
[1748843478255,0.68311228,104800.0,104790.0,0.2951735]
[1748843478489,0.68311228,104800.0,104790.0,0.27732714]
[1748843478912,0.68311228,104800.0,104790.0,0.26778489]
[1748843479332,0.68311228,104800.0,104790.0,0.27732714]
[1748843479535,0.68311228,104800.0,104790.0,0.28563125]
[1748843480043,0.68311228,104800.0,104790.0,0.56046489]
[1748843480704,0.68311228,104800.0,104790.0,0.57000714]
[1748843481659,0.68311228,104800.0,104790.0,0.56046489]
[1748843481908,0.68311228,104800.0,104790.0,0.55092255]
[1748843482119,0.68311228,104800.0,104790.0,0.5604648]
[1748843482325,0.68311228,104800.0,104790.0,0.56046489]
[1748843482528,0.68311228,104800.0,104790.0,0.57830651]
[1748843482977,0.68311228,104800.0,104790.0,0.05661425]
[1748843482978,1.66474267,104800.0,104790.0,0.05661425]
[1748843483197,1.66474267,104800.0,104790.0,0.03571957]
[1748843483198,1.95054196,104800.0,104790.0,0.03571957]
[1748843483414,2.07505226,104800.0,104790.0,0.03571957]
[1748843483623,2.17555226,104800.0,104790.0,0.03571957]
[1748843484257,2.17455226,104800.0,104790.0,0.03571957]
[1748843484461,2.17355226,104800.0,104790.0,0.03571957]
[1748843484667,1.2164548,104800.0,104790.0,0.03571957]
[1748843486141,1.2194548,104800.0,104790.0,0.03571957]
[1748843490680,1.2194948,104800.0,104790.0,0.03571957]
[1748843501156,0.9268148,104800.0,104790.0,0.22657747]
[1748843501381,0.81775996,104800.0,104790.0,0.22657747]
[1748843501627,1.01818154,104800.0,104790.0,0.22657747]
[1748843504795,0.98952554,104800.0,104790.0,0.22657747]
[1748843505211,0.97998402,104800.0,104790.0,0.22657747]
[1748843506709,0.97044222,104800.0,104790.0,0.22657747]
[1748843507084,0.97044222,104800.0,104790.0,0.03571957]
[1748843507813,0.99909822,104800.0,104790.0,0.03571957]
[1748843518010,0.99909822,104800.0,104790.0,0.05360768]
[1748843518237,0.94914384,104800.0,104790.0,0.22657747]
[1748843518457,0.95868582,104800.0,104790.0,0.24446533]
[1748843518671,0.95868582,104800.0,104790.0,0.22657747]
[1748843520011,0.95868582,104800.0,104790.0,0.24446555]
[1748843520227,0.95868582,104800.0,104790.0,0.22657747]
[1748843520845,0.95868582,104800.0,104790.0,0.24446555]
[1748843521033,0.95868582,104800.0,104790.0,0.22657747]
[1748843521034,0.9491442,104800.0,104790.0,0.22657747]
[1748843521752,0.95470231,104800.0,104790.0,0.2444662]
[1748843522075,0.95470231,104800.0,104790.0,0.24446269]
[1748843522679,0.97000231,104800.0,104790.0,0.24446269]
[1748843523310,0.97000231,104800.0,104790.0,0.22657747]
[1748843523516,0.97000231,104800.0,104790.0,0.24446124]
[1748843525085,0.96046033,104800.0,104790.0,0.24446124]
[1748843525446,0.96046033,104800.0,104790.0,0.24446048]
[1748843526274,0.96046033,104800.0,104790.0,0.22657747]
[1748843526275,0.94516033,104800.0,104790.0,0.22657747]
[1748843526686,0.94516033,104800.0,104790.0,0.24446048]
[1748843526905,0.94516033,104800.0,104790.0,0.22657747]
[1748843527773,0.95470231,104800.0,104790.0,0.22657747]
[1748843528116,0.97120231,104800.0,104790.0,0.22657747]
[1748843528731,0.97120231,104800.0,104790.0,0.24446048]
[1748843528912,0.97120231,104800.0,104790.0,0.22657747]
[1748843529522,0.97120231,104800.0,104790.0,0.24446048]
[1748843529729,0.95470231,104800.0,104790.0,0.22657747]
[1748843530113,0.95470231,104800.0,104790.0,0.2444612]
[1748843530507,0.95470231,104800.0,104790.0,0.22657747]
[1748843531171,0.95470231,104800.0,104790.0,0.03571957]
[1748843531344,0.97080231,104800.0,104790.0,0.03571957]
[1748843531539,0.97080231,104800.0,104790.0,0.22657747]
[1748843531809,0.95226231,104800.0,104790.0,0.22657747]
[1748843532024,0.93716231,104800.0,104790.0,0.22657747]
[1748843532358,0.93716231,104800.0,104790.0,0.24446086]
[1748843532997,0.93716231,104800.0,104790.0,0.24446059]
[1748843533218,0.93716231,104800.0,104790.0,0.22657747]
[1748843533915,0.93716231,104800.0,104790.0,0.24446019]
[1748843534346,0.93716231,104800.0,104790.0,0.22657747]
[1748843534771,0.74492231,104800.0,104790.0,0.22657747]
[1748843534988,0.93712231,104800.0,104790.0,0.22657747]
[1748843535189,0.94666402,104800.0,104790.0,0.22657747]
[1748843535580,0.94666402,104800.0,104790.0,0.24445975]
[1748843535809,0.94666402,104800.0,104790.0,0.22657747]
[1748843536188,0.94666402,104800.0,104790.0,0.24445975]
[1748843536401,0.94666402,104800.0,104790.0,0.22657747]
[1748843536658,0.94666402,104800.0,104790.0,0.24445975]
[1748843536890,0.94666402,104800.0,104790.0,0.22657747]
[1748843537828,0.94666402,104800.0,104790.0,0.24445935]
[1748843538417,0.94666402,104800.0,104790.0,0.22657747]
[1748843538851,0.94654402,104800.0,104790.0,0.25737747]
[1748843539689,0.44402064,104800.0,104790.0,0.25737747]
[1748843539901,0.73658064,104800.0,104790.0,0.25737747]
[1748843540432,0.73658064,104800.0,104790.0,0.275259]
[1748843540636,0.73658064,104800.0,104790.0,0.25737747]
[1748843541285,0.73658064,104800.0,104790.0,0.27526025]
[1748843541699,0.73658064,104800.0,104790.0,0.27526022]
[1748843542083,0.73658064,104800.0,104790.0,0.25737747]
[1748843542335,0.44402064,104800.0,104790.0,0.28480311]
[1748843542469,0.73658064,104800.0,104790.0,0.30694192]
[1748843542989,0.73658064,104800.0,104790.0,0.30694201]
[1748843543196,0.74612189,104800.0,104790.0,0.31647918]
[1748843543660,0.74612189,104800.0,104790.0,0.29860179]
[1748843544788,0.74612189,104800.0,104790.0,0.28905926]
[1748843545021,0.45356189,104800.0,104790.0,0.31647583]
[1748843545217,0.74612189,104800.0,104790.0,0.29860179]
[1748843545471,0.74612189,104800.0,104790.0,0.31647583]
[1748843545609,0.74612189,104800.0,104790.0,0.28905926]
[1748843545805,0.74612189,104800.0,104790.0,0.31647583]
[1748843546023,0.74612189,104800.0,104790.0,0.29860177]
[1748843546220,0.73658064,104800.0,104790.0,0.28905924]
[1748843546648,0.73658064,104800.0,104790.0,0.29860168]
[1748843547255,0.73658064,104800.0,104790.0,0.28905924]
[1748843547485,0.73658064,104800.0,104790.0,0.28905933]
[1748843547684,0.73658064,104800.0,104790.0,0.29860195]
[1748843547896,0.73658064,104800.0,104790.0,0.31647579]
[1748843548214,0.73658064,104800.0,104790.0,0.29860195]
[1748843548430,0.73658064,104800.0,104790.0,0.31647579]
[1748843548825,0.73658064,104800.0,104790.0,0.29860195]
[1748843549384,0.73658064,104800.0,104790.0,0.31647579]
[1748843549592,0.73658064,104800.0,104790.0,0.29860195]
[1748843550542,0.73658064,104800.0,104790.0,0.29860191]
[1748843551358,0.73658064,104800.0,104790.0,0.27951658]
[1748843552522,0.73658064,104800.0,104790.0,0.29860191]
[1748843552730,0.73658064,104800.0,104790.0,0.30693198]
[1748843552939,0.73658064,104800.0,104790.0,0.28905929]
[1748843553363,0.73658064,104800.0,104790.0,0.31647457]
[1748843553597,0.73658064,104800.0,104790.0,0.29738823]
[1748843553798,0.73658064,104800.0,104790.0,0.27951658]
[1748843553999,0.73658064,104800.0,104790.0,0.30693094]
[1748843554202,0.73658064,104800.0,104790.0,0.28905929]
[1748843554410,0.73658064,104800.0,104790.0,0.26043089]
[1748843554621,0.73658064,104800.0,104790.0,0.26997378]
[1748843554831,0.73658064,104800.0,104790.0,0.28905929]
[1748843555246,0.35414064,104800.0,104790.0,0.30814435]
[1748843555450,0.73654064,104800.0,104790.0,0.30814444]
[1748843555662,0.73654064,104800.0,104790.0,0.29860191]
[1748843555794,0.73654064,104800.0,104790.0,0.28905929]
[1748843556003,0.73654064,104800.0,104790.0,0.29860191]
[1748843556364,0.73654064,104800.0,104790.0,0.28905929]
[1748843556873,0.73654064,104800.0,104790.0,0.27951658]
[1748843557074,0.73654064,104800.0,104790.0,0.29738819]
[1748843557301,0.73654064,104800.0,104790.0,0.27951658]
[1748843557484,0.73654064,104800.0,104790.0,0.28905929]
[1748843557681,0.73654064,104800.0,104790.0,0.3069309]
[1748843557975,0.73654064,104800.0,104790.0,0.28905929]
[1748843558276,0.73654064,104800.0,104790.0,0.29738819]
[1748843558500,0.73654064,104800.0,104790.0,0.27951658]
[1748843558912,0.73654064,104800.0,104790.0,0.28905929]
[1748843559100,0.73654064,104800.0,104790.0,0.27951658]
[1748843559731,0.73654064,104800.0,104790.0,0.26043089]
[1748843559869,0.73654064,104800.0,104790.0,0.22963089]
[1748843560078,0.75314064,104800.0,104790.0,0.22657747]
[1748843560453,0.75314064,104800.0,104790.0,0.05359181]
[1748843560454,0.97876393,104800.0,104790.0,0.05359181]
[1748843560635,0.97876393,104800.0,104790.0,0.03571957]
[1748843560833,0.97876393,104800.0,104790.0,0.24444976]
[1748843561047,0.97876393,104800.0,104790.0,0.22657747]
[1748843561250,0.97876393,104800.0,104790.0,0.24444976]
[1748843561657,0.97876393,104800.0,104790.0,0.22657747]
[1748843563423,0.97876393,104800.0,104790.0,0.24446613]
[1748843564280,0.97872393,104800.0,104790.0,0.24446592]
[1748843564493,0.97872393,104800.0,104790.0,0.2444659]
[1748843564679,0.77218424,104800.0,104790.0,0.24446597]
[1748843564901,0.96302393,104800.0,104790.0,0.24446579]
[1748843565506,0.96302393,104800.0,104790.0,0.24446632]
[1748843566313,0.96302393,104800.0,104790.0,0.24751978]
[1748843566754,0.96302393,104800.0,104790.0,0.22963093]
[1748843566929,0.96302393,104800.0,104790.0,0.24752018]
[1748843567130,0.96302393,104800.0,104790.0,0.24446672]
[1748843567335,0.96302393,104800.0,104790.0,0.22657747]